Workbook

Sheet Chart
A1: Tabular Islamic Calendar Lunar Cycle Jitter Relative to Mean Month
A3: ="Lunar cycle contains "&MPC&" months ("&FMPC&" full, "&DMPC&" deficient) = "&DPC&" days = "&reducefraction(DPC,7,FALSE,FALSE,TRUE)&" weeks. Each lunar year has 12 months. "&IF(Reverse,"After a common year odd-numbered",) -> Lunar cycle contains 360 months (191 full, 169 deficient) = 10631 days = 1518+5/7 weeks. Each lunar year has 12 months.
A4: =IF(Reverse,,"Odd-numbered ")&"months have 30 days, even-numbered months have 29 days."&IF(Reverse," After a leap year odd-numbered months have 29 days, even-numbered months",) -> Odd-numbered months have 30 days, even-numbered months have 29 days.
A5: =IF(Reverse,"have 30 days. ",)&"Year y is a leap year if and only if (11y + "&Offset&") MOD 30 < 11, in which case the 12th month has 30 days." -> Year y is a leap year if and only if (11y + 0) MOD 30 < 11, in which case the 12th month has 30 days.
A6: ="Leap years in each cycle are: "&islamic_leap_years(Offset)&". Common years = FDFDFDFDFDFD"&IF(Reverse," or DFDFDFDFDFDF",)&" = 354 days." -> Leap years in each cycle are: 3, 6, 9, 11, 14, 17, 20, 22, 25, 28, 30. Common years = FDFDFDFDFDFD = 354 days.
A7: ="Leap years = FDFDFDFDFDFF = 355 days." -> Leap years = FDFDFDFDFDFF = 355 days.
A8: ="Mean month = "&"29+"&reducefraction(FMPC,MPC,FALSE,FALSE,TRUE)&" days = 29d 12h 44m "&reducefraction(240*(360*FMPC-191*MPC),MPC,FALSE,FALSE,TRUE)&" seconds, or about 29"&MID(FMPC/MPC,2,20)&" days or 29d 12h 44m "&ROUND(240*(360*FMPC-191*MPC)/MPC,6)&" seconds." -> Mean month = 29+191/360 days = 29d 12h 44m 0 seconds, or about 29.530555555555556 days or 29d 12h 44m 0 seconds.
A9: ="Duration per ''Part'' = 1/"&MPC&" day = "&reducefraction(24,MPC,FALSE,FALSE,TRUE)&" hour = "&reducefraction(1440,MPC,FALSE,FALSE,TRUE)&" minutes = "&reducefraction(86400,MPC,FALSE,FALSE,TRUE)&" seconds. One hour = "&reducefraction(MPC,24,FALSE,FALSE,TRUE)&" parts." -> Duration per ''Part'' = 1/360 day = 1/15 hour = 4 minutes = 240 seconds. One hour = 15 parts.
Q11: TRUE
Q20: 11
Q21: Selected
Q22: Month
Q23: in Year
Q24: (1 to 12)
Q30: 2
Q31: Selected
Q32: Month 2
Q33: in Year
Q34: (1 to 12)
Q41: 0
Q42: Leap
Q43: Rule
Q44: Offset
Q45: (0 to 29)

Sheet Data
A1: Lunar Cycle Jitter Evaluator
A2: by Dr. Irv Bromberg, University of Toronto, Canada
A3: http://individual.utoronto.ca/intervalmath/jitter/index.html | D3: Jitter | E3: (parts)
D4: =MAX(H:H) -> 458 | E4: maximum | F4: =reducefraction(JitterMax*MPC,MPC,FALSE,FALSE,FALSE) -> 458
A5: Months per Cycle (Parts per Day): | B5: 360 | C5: months (parts) | D5: =MIN(H:H) -> -169 | E5: minimum | F5: =reducefraction(JitterMin*MPC,MPC,FALSE,FALSE,FALSE) -> –(169)
A6: 30-day Months per Cycle: | B6: 191 | C6: months | D6: =D4-D5 -> 627 | E6: range | F6: =reducefraction(JitterRange*MPC,MPC,FALSE,FALSE,FALSE) -> 627
A7: 29-day Months per Cycle: | B7: =MPC-FMPC -> 169 | C7: months | D7: ="Jitter range = "&F6&" parts = "&reducefraction(F6*24,MPC,FALSE,FALSE,FALSE)&" hours" -> Jitter range = 627 parts = 41 + 4 / 5 hours
A8: Days per Cycle (Parts per Month): | B8: =29*MPC+FMPC -> 10631 | C8: days (parts)
D9: Limits for Chart:
A10: Mean Month: | B10: ="29 + "&reducefraction(FMPC,MPC,FALSE,FALSE,FALSE) -> 29 + 191 / 360 | C10: days | D10: x | E10: y | F10: Hours
A11: Mean Month >29d: | B11: =FMPC/MPC -> 0.530555555555556 | C11: days | D11: =B23 -> 1 | E11: =JitterMax -> 458 | F11: =E11*24/MPC -> 30.53333333
A12: Mean Month >29d 12h 44m: | B12: =reducefraction(240*(360*FMPC-191*MPC),MPC,FALSE,FALSE,TRUE) -> 0 | C12: seconds | D12: =MPC+1 -> 361 | E12: =E11 -> 458 | F12: =E12*24/MPC -> 30.53333333
A13: … or approximately: | B13: =240*(360*FMPC-191*MPC)/MPC -> 0 | C13: seconds
D14: =D11 -> 1 | E14: 0
D15: =D12 -> 361 | E15: 0
D17: =B23 -> 1 | E17: =JitterMin -> -169 | F17: =E17*24/MPC -> -11.26666667
A18: Duration per Part: | B18: =reducefraction(1440,MPC,FALSE,FALSE,FALSE) -> 4 | C18: minutes | D18: =D12 -> 361 | E18: =E17 -> -169 | F18: =E18*24/MPC -> -11.26666667
A19: Offset: | B19: =Offset -> 0
A20: Leap Years: | B20: =islamic_leap_years(Offset) -> 3, 6, 9, 11, 14, 17, 20, 22, 25, 28, 30 | I20: Reverse
I21: FALSE
A22: Year | B22: Month # | C22: Month in Year | D22: Leap Month? | E22: Month Length | F22: New Month Moment | G22: Elapsed | H22: Difference | I22: Prior Leap
A23: 1 | B23: 1 | C23: 1 | D23: =AND(C23=12,MOD(A23*11+Offset,30)<11) -> FALSE | E23: =IF(MOD(C23,2)=1,IF(I23,29,30),IF(I23,30,29))+IF(D23,1,0) -> 30 | F23: 0 | G23: 0 | H23: =F23-G23 -> 0 | I23: =IF(Reverse,MOD((A23-1)*11+Offset,30)<11,FALSE) -> FALSE
A24: =IF(C24=1,A23+1,A23) -> 1 | B24: =B23+1 -> 2 | C24: =IF(C23=12,1,C23+1) -> 2 | D24: FALSE | E24: =IF(MOD(C24,2)=1,IF(I24,29,30),IF(I24,30,29))+IF(D24,1,0) -> 29 | F24: =F23+PPM -> 10631 | G24: =G23+E23*PPD -> 10800 | H24: -169 | I24: FALSE
A25: 1 | B25: =B24+1 -> 3 | C25: =IF(C24=12,1,C24+1) -> 3 | D25: FALSE | E25: 30 | F25: =F24+PPM -> 21262 | G25: 21240 | H25: 22 | I25: FALSE
A26: 1 | B26: 4 | C26: 4 | D26: FALSE | E26: 29 | F26: 31893 | G26: 32040 | H26: -147 | I26: FALSE
A27: 1 | B27: 5 | C27: 5 | D27: FALSE | E27: 30 | F27: 42524 | G27: 42480 | H27: 44 | I27: FALSE
A28: 1 | B28: 6 | C28: 6 | D28: FALSE | E28: 29 | F28: 53155 | G28: 53280 | H28: -125 | I28: FALSE
A29: 1 | B29: 7 | C29: 7 | D29: FALSE | E29: 30 | F29: 63786 | G29: 63720 | H29: 66 | I29: FALSE
A30: 1 | B30: 8 | C30: 8 | D30: FALSE | E30: 29 | F30: 74417 | G30: 74520 | H30: -103 | I30: FALSE
A31: 1 | B31: 9 | C31: 9 | D31: FALSE | E31: 30 | F31: 85048 | G31: 84960 | H31: 88 | I31: FALSE
A32: 1 | B32: 10 | C32: 10 | D32: FALSE | E32: 29 | F32: 95679 | G32: 95760 | H32: -81 | I32: FALSE
A33: 1 | B33: 11 | C33: 11 | D33: FALSE | E33: 30 | F33: 106310 | G33: 106200 | H33: 110 | I33: FALSE
A34: 1 | B34: 12 | C34: 12 | D34: FALSE | E34: 29 | F34: 116941 | G34: 117000 | H34: -59 | I34: FALSE
A35: 2 | B35: 13 | C35: 1 | D35: FALSE | E35: 30 | F35: 127572 | G35: 127440 | H35: 132 | I35: FALSE
A36: 2 | B36: 14 | C36: 2 | D36: FALSE | E36: 29 | F36: 138203 | G36: 138240 | H36: -37 | I36: FALSE
A37: 2 | B37: 15 | C37: 3 | D37: FALSE | E37: 30 | F37: 148834 | G37: 148680 | H37: 154 | I37: FALSE
A38: 2 | B38: 16 | C38: 4 | D38: FALSE | E38: 29 | F38: 159465 | G38: 159480 | H38: -15 | I38: FALSE
A39: 2 | B39: 17 | C39: 5 | D39: FALSE | E39: 30 | F39: 170096 | G39: 169920 | H39: 176 | I39: FALSE
A40: 2 | B40: 18 | C40: 6 | D40: FALSE | E40: 29 | F40: 180727 | G40: 180720 | H40: 7 | I40: FALSE
A41: 2 | B41: 19 | C41: 7 | D41: FALSE | E41: 30 | F41: 191358 | G41: 191160 | H41: 198 | I41: FALSE
A42: 2 | B42: 20 | C42: 8 | D42: FALSE | E42: 29 | F42: 201989 | G42: 201960 | H42: 29 | I42: FALSE
A43: 2 | B43: 21 | C43: 9 | D43: FALSE | E43: 30 | F43: 212620 | G43: 212400 | H43: 220 | I43: FALSE
A44: 2 | B44: 22 | C44: 10 | D44: FALSE | E44: 29 | F44: 223251 | G44: 223200 | H44: 51 | I44: FALSE
A45: 2 | B45: 23 | C45: 11 | D45: FALSE | E45: 30 | F45: 233882 | G45: 233640 | H45: 242 | I45: FALSE
A46: 2 | B46: 24 | C46: 12 | D46: FALSE | E46: 29 | F46: 244513 | G46: 244440 | H46: 73 | I46: FALSE
A47: 3 | B47: 25 | C47: 1 | D47: FALSE | E47: 30 | F47: 255144 | G47: 254880 | H47: 264 | I47: FALSE
A48: 3 | B48: 26 | C48: 2 | D48: FALSE | E48: 29 | F48: 265775 | G48: 265680 | H48: 95 | I48: FALSE
A49: 3 | B49: 27 | C49: 3 | D49: FALSE | E49: 30 | F49: 276406 | G49: 276120 | H49: 286 | I49: FALSE
A50: 3 | B50: 28 | C50: 4 | D50: FALSE | E50: 29 | F50: 287037 | G50: 286920 | H50: 117 | I50: FALSE
A51: 3 | B51: 29 | C51: 5 | D51: FALSE | E51: 30 | F51: 297668 | G51: 297360 | H51: 308 | I51: FALSE
A52: 3 | B52: 30 | C52: 6 | D52: FALSE | E52: 29 | F52: 308299 | G52: 308160 | H52: 139 | I52: FALSE
A53: 3 | B53: 31 | C53: 7 | D53: FALSE | E53: 30 | F53: 318930 | G53: 318600 | H53: 330 | I53: FALSE
A54: 3 | B54: 32 | C54: 8 | D54: FALSE | E54: 29 | F54: 329561 | G54: 329400 | H54: 161 | I54: FALSE
A55: 3 | B55: 33 | C55: 9 | D55: FALSE | E55: 30 | F55: 340192 | G55: 339840 | H55: 352 | I55: FALSE
A56: 3 | B56: 34 | C56: 10 | D56: FALSE | E56: 29 | F56: 350823 | G56: 350640 | H56: 183 | I56: FALSE
A57: 3 | B57: 35 | C57: 11 | D57: FALSE | E57: 30 | F57: 361454 | G57: 361080 | H57: 374 | I57: FALSE
A58: 3 | B58: 36 | C58: 12 | D58: TRUE | E58: 30 | F58: 372085 | G58: 371880 | H58: 205 | I58: FALSE
A59: 4 | B59: 37 | C59: 1 | D59: FALSE | E59: 30 | F59: 382716 | G59: 382680 | H59: 36 | I59: FALSE
A60: 4 | B60: 38 | C60: 2 | D60: FALSE | E60: 29 | F60: 393347 | G60: 393480 | H60: -133 | I60: FALSE
A61: 4 | B61: 39 | C61: 3 | D61: FALSE | E61: 30 | F61: 403978 | G61: 403920 | H61: 58 | I61: FALSE
A62: 4 | B62: 40 | C62: 4 | D62: FALSE | E62: 29 | F62: 414609 | G62: 414720 | H62: -111 | I62: FALSE
A63: 4 | B63: 41 | C63: 5 | D63: FALSE | E63: 30 | F63: 425240 | G63: 425160 | H63: 80 | I63: FALSE
A64: 4 | B64: 42 | C64: 6 | D64: FALSE | E64: 29 | F64: 435871 | G64: 435960 | H64: -89 | I64: FALSE
A65: 4 | B65: 43 | C65: 7 | D65: FALSE | E65: 30 | F65: 446502 | G65: 446400 | H65: 102 | I65: FALSE
A66: 4 | B66: 44 | C66: 8 | D66: FALSE | E66: 29 | F66: 457133 | G66: 457200 | H66: -67 | I66: FALSE
A67: 4 | B67: 45 | C67: 9 | D67: FALSE | E67: 30 | F67: 467764 | G67: 467640 | H67: 124 | I67: FALSE
A68: 4 | B68: 46 | C68: 10 | D68: FALSE | E68: 29 | F68: 478395 | G68: 478440 | H68: -45 | I68: FALSE
A69: 4 | B69: 47 | C69: 11 | D69: FALSE | E69: 30 | F69: 489026 | G69: 488880 | H69: 146 | I69: FALSE
A70: 4 | B70: 48 | C70: 12 | D70: FALSE | E70: 29 | F70: 499657 | G70: 499680 | H70: -23 | I70: FALSE
A71: 5 | B71: 49 | C71: 1 | D71: FALSE | E71: 30 | F71: 510288 | G71: 510120 | H71: 168 | I71: FALSE
A72: 5 | B72: 50 | C72: 2 | D72: FALSE | E72: 29 | F72: 520919 | G72: 520920 | H72: -1 | I72: FALSE
A73: 5 | B73: 51 | C73: 3 | D73: FALSE | E73: 30 | F73: 531550 | G73: 531360 | H73: 190 | I73: FALSE
A74: 5 | B74: 52 | C74: 4 | D74: FALSE | E74: 29 | F74: 542181 | G74: 542160 | H74: 21 | I74: FALSE
A75: 5 | B75: 53 | C75: 5 | D75: FALSE | E75: 30 | F75: 552812 | G75: 552600 | H75: 212 | I75: FALSE
A76: 5 | B76: 54 | C76: 6 | D76: FALSE | E76: 29 | F76: 563443 | G76: 563400 | H76: 43 | I76: FALSE
A77: 5 | B77: 55 | C77: 7 | D77: FALSE | E77: 30 | F77: 574074 | G77: 573840 | H77: 234 | I77: FALSE
A78: 5 | B78: 56 | C78: 8 | D78: FALSE | E78: 29 | F78: 584705 | G78: 584640 | H78: 65 | I78: FALSE
A79: 5 | B79: 57 | C79: 9 | D79: FALSE | E79: 30 | F79: 595336 | G79: 595080 | H79: 256 | I79: FALSE
A80: 5 | B80: 58 | C80: 10 | D80: FALSE | E80: 29 | F80: 605967 | G80: 605880 | H80: 87 | I80: FALSE
A81: 5 | B81: 59 | C81: 11 | D81: FALSE | E81: 30 | F81: 616598 | G81: 616320 | H81: 278 | I81: FALSE
A82: 5 | B82: 60 | C82: 12 | D82: FALSE | E82: 29 | F82: 627229 | G82: 627120 | H82: 109 | I82: FALSE
A83: 6 | B83: 61 | C83: 1 | D83: FALSE | E83: 30 | F83: 637860 | G83: 637560 | H83: 300 | I83: FALSE
A84: 6 | B84: 62 | C84: 2 | D84: FALSE | E84: 29 | F84: 648491 | G84: 648360 | H84: 131 | I84: FALSE
A85: 6 | B85: 63 | C85: 3 | D85: FALSE | E85: 30 | F85: 659122 | G85: 658800 | H85: 322 | I85: FALSE
A86: 6 | B86: 64 | C86: 4 | D86: FALSE | E86: 29 | F86: 669753 | G86: 669600 | H86: 153 | I86: FALSE
A87: 6 | B87: 65 | C87: 5 | D87: =AND(C87=12,MOD(A87*11+Offset,30)<11) -> FALSE | E87: 30 | F87: 680384 | G87: 680040 | H87: =F87-G87 -> 344 | I87: =IF(Reverse,MOD((A87-1)*11+Offset,30)<11,FALSE) -> FALSE
A88: =IF(C88=1,A87+1,A87) -> 6 | B88: 66 | C88: 6 | D88: FALSE | E88: =IF(MOD(C88,2)=1,IF(I88,29,30),IF(I88,30,29))+IF(D88,1,0) -> 29 | F88: 691015 | G88: =G87+E87*PPD -> 690840 | H88: 175 | I88: FALSE
A89: 6 | B89: =B88+1 -> 67 | C89: =IF(C88=12,1,C88+1) -> 7 | D89: FALSE | E89: 30 | F89: =F88+PPM -> 701646 | G89: 701280 | H89: 366 | I89: FALSE
A90: 6 | B90: 68 | C90: 8 | D90: FALSE | E90: 29 | F90: 712277 | G90: 712080 | H90: 197 | I90: FALSE
A91: 6 | B91: 69 | C91: 9 | D91: FALSE | E91: 30 | F91: 722908 | G91: 722520 | H91: 388 | I91: FALSE
A92: 6 | B92: 70 | C92: 10 | D92: FALSE | E92: 29 | F92: 733539 | G92: 733320 | H92: 219 | I92: FALSE
A93: 6 | B93: 71 | C93: 11 | D93: FALSE | E93: 30 | F93: 744170 | G93: 743760 | H93: 410 | I93: FALSE
A94: 6 | B94: 72 | C94: 12 | D94: TRUE | E94: 30 | F94: 754801 | G94: 754560 | H94: 241 | I94: FALSE
A95: 7 | B95: 73 | C95: 1 | D95: FALSE | E95: 30 | F95: 765432 | G95: 765360 | H95: 72 | I95: FALSE
A96: 7 | B96: 74 | C96: 2 | D96: FALSE | E96: 29 | F96: 776063 | G96: 776160 | H96: -97 | I96: FALSE
A97: 7 | B97: 75 | C97: 3 | D97: FALSE | E97: 30 | F97: 786694 | G97: 786600 | H97: 94 | I97: FALSE
A98: 7 | B98: 76 | C98: 4 | D98: FALSE | E98: 29 | F98: 797325 | G98: 797400 | H98: -75 | I98: FALSE
A99: 7 | B99: 77 | C99: 5 | D99: FALSE | E99: 30 | F99: 807956 | G99: 807840 | H99: 116 | I99: FALSE
A100: 7 | B100: 78 | C100: 6 | D100: FALSE | E100: 29 | F100: 818587 | G100: 818640 | H100: -53 | I100: FALSE
A101: 7 | B101: 79 | C101: 7 | D101: FALSE | E101: 30 | F101: 829218 | G101: 829080 | H101: 138 | I101: FALSE
A102: 7 | B102: 80 | C102: 8 | D102: FALSE | E102: 29 | F102: 839849 | G102: 839880 | H102: -31 | I102: FALSE
A103: 7 | B103: 81 | C103: 9 | D103: FALSE | E103: 30 | F103: 850480 | G103: 850320 | H103: 160 | I103: FALSE
A104: 7 | B104: 82 | C104: 10 | D104: FALSE | E104: 29 | F104: 861111 | G104: 861120 | H104: -9 | I104: FALSE
A105: 7 | B105: 83 | C105: 11 | D105: FALSE | E105: 30 | F105: 871742 | G105: 871560 | H105: 182 | I105: FALSE
A106: 7 | B106: 84 | C106: 12 | D106: FALSE | E106: 29 | F106: 882373 | G106: 882360 | H106: 13 | I106: FALSE
A107: 8 | B107: 85 | C107: 1 | D107: FALSE | E107: 30 | F107: 893004 | G107: 892800 | H107: 204 | I107: FALSE
A108: 8 | B108: 86 | C108: 2 | D108: FALSE | E108: 29 | F108: 903635 | G108: 903600 | H108: 35 | I108: FALSE
A109: 8 | B109: 87 | C109: 3 | D109: FALSE | E109: 30 | F109: 914266 | G109: 914040 | H109: 226 | I109: FALSE
A110: 8 | B110: 88 | C110: 4 | D110: FALSE | E110: 29 | F110: 924897 | G110: 924840 | H110: 57 | I110: FALSE
A111: 8 | B111: 89 | C111: 5 | D111: FALSE | E111: 30 | F111: 935528 | G111: 935280 | H111: 248 | I111: FALSE
A112: 8 | B112: 90 | C112: 6 | D112: FALSE | E112: 29 | F112: 946159 | G112: 946080 | H112: 79 | I112: FALSE
A113: 8 | B113: 91 | C113: 7 | D113: FALSE | E113: 30 | F113: 956790 | G113: 956520 | H113: 270 | I113: FALSE
A114: 8 | B114: 92 | C114: 8 | D114: FALSE | E114: 29 | F114: 967421 | G114: 967320 | H114: 101 | I114: FALSE
A115: 8 | B115: 93 | C115: 9 | D115: FALSE | E115: 30 | F115: 978052 | G115: 977760 | H115: 292 | I115: FALSE
A116: 8 | B116: 94 | C116: 10 | D116: FALSE | E116: 29 | F116: 988683 | G116: 988560 | H116: 123 | I116: FALSE
A117: 8 | B117: 95 | C117: 11 | D117: FALSE | E117: 30 | F117: 999314 | G117: 999000 | H117: 314 | I117: FALSE
A118: 8 | B118: 96 | C118: 12 | D118: FALSE | E118: 29 | F118: 1009945 | G118: 1009800 | H118: 145 | I118: FALSE
A119: 9 | B119: 97 | C119: 1 | D119: FALSE | E119: 30 | F119: 1020576 | G119: 1020240 | H119: 336 | I119: FALSE
A120: 9 | B120: 98 | C120: 2 | D120: FALSE | E120: 29 | F120: 1031207 | G120: 1031040 | H120: 167 | I120: FALSE
A121: 9 | B121: 99 | C121: 3 | D121: FALSE | E121: 30 | F121: 1041838 | G121: 1041480 | H121: 358 | I121: FALSE
A122: 9 | B122: 100 | C122: 4 | D122: FALSE | E122: 29 | F122: 1052469 | G122: 1052280 | H122: 189 | I122: FALSE
A123: 9 | B123: 101 | C123: 5 | D123: FALSE | E123: 30 | F123: 1063100 | G123: 1062720 | H123: 380 | I123: FALSE
A124: 9 | B124: 102 | C124: 6 | D124: FALSE | E124: 29 | F124: 1073731 | G124: 1073520 | H124: 211 | I124: FALSE
A125: 9 | B125: 103 | C125: 7 | D125: FALSE | E125: 30 | F125: 1084362 | G125: 1083960 | H125: 402 | I125: FALSE
A126: 9 | B126: 104 | C126: 8 | D126: FALSE | E126: 29 | F126: 1094993 | G126: 1094760 | H126: 233 | I126: FALSE
A127: 9 | B127: 105 | C127: 9 | D127: FALSE | E127: 30 | F127: 1105624 | G127: 1105200 | H127: 424 | I127: FALSE
A128: 9 | B128: 106 | C128: 10 | D128: FALSE | E128: 29 | F128: 1116255 | G128: 1116000 | H128: 255 | I128: FALSE
A129: 9 | B129: 107 | C129: 11 | D129: FALSE | E129: 30 | F129: 1126886 | G129: 1126440 | H129: 446 | I129: FALSE
A130: 9 | B130: 108 | C130: 12 | D130: TRUE | E130: 30 | F130: 1137517 | G130: 1137240 | H130: 277 | I130: FALSE
A131: 10 | B131: 109 | C131: 1 | D131: FALSE | E131: 30 | F131: 1148148 | G131: 1148040 | H131: 108 | I131: FALSE
A132: 10 | B132: 110 | C132: 2 | D132: FALSE | E132: 29 | F132: 1158779 | G132: 1158840 | H132: -61 | I132: FALSE
A133: 10 | B133: 111 | C133: 3 | D133: FALSE | E133: 30 | F133: 1169410 | G133: 1169280 | H133: 130 | I133: FALSE
A134: 10 | B134: 112 | C134: 4 | D134: FALSE | E134: 29 | F134: 1180041 | G134: 1180080 | H134: -39 | I134: FALSE
A135: 10 | B135: 113 | C135: 5 | D135: FALSE | E135: 30 | F135: 1190672 | G135: 1190520 | H135: 152 | I135: FALSE
A136: 10 | B136: 114 | C136: 6 | D136: FALSE | E136: 29 | F136: 1201303 | G136: 1201320 | H136: -17 | I136: FALSE
A137: 10 | B137: 115 | C137: 7 | D137: FALSE | E137: 30 | F137: 1211934 | G137: 1211760 | H137: 174 | I137: FALSE
A138: 10 | B138: 116 | C138: 8 | D138: FALSE | E138: 29 | F138: 1222565 | G138: 1222560 | H138: 5 | I138: FALSE
A139: 10 | B139: 117 | C139: 9 | D139: FALSE | E139: 30 | F139: 1233196 | G139: 1233000 | H139: 196 | I139: FALSE
A140: 10 | B140: 118 | C140: 10 | D140: FALSE | E140: 29 | F140: 1243827 | G140: 1243800 | H140: 27 | I140: FALSE
A141: 10 | B141: 119 | C141: 11 | D141: FALSE | E141: 30 | F141: 1254458 | G141: 1254240 | H141: 218 | I141: FALSE
A142: 10 | B142: 120 | C142: 12 | D142: FALSE | E142: 29 | F142: 1265089 | G142: 1265040 | H142: 49 | I142: FALSE
A143: 11 | B143: 121 | C143: 1 | D143: FALSE | E143: 30 | F143: 1275720 | G143: 1275480 | H143: 240 | I143: FALSE
A144: 11 | B144: 122 | C144: 2 | D144: FALSE | E144: 29 | F144: 1286351 | G144: 1286280 | H144: 71 | I144: FALSE
A145: 11 | B145: 123 | C145: 3 | D145: FALSE | E145: 30 | F145: 1296982 | G145: 1296720 | H145: 262 | I145: FALSE
A146: 11 | B146: 124 | C146: 4 | D146: FALSE | E146: 29 | F146: 1307613 | G146: 1307520 | H146: 93 | I146: FALSE
A147: 11 | B147: 125 | C147: 5 | D147: FALSE | E147: 30 | F147: 1318244 | G147: 1317960 | H147: 284 | I147: FALSE
A148: 11 | B148: 126 | C148: 6 | D148: FALSE | E148: 29 | F148: 1328875 | G148: 1328760 | H148: 115 | I148: FALSE
A149: 11 | B149: 127 | C149: 7 | D149: FALSE | E149: 30 | F149: 1339506 | G149: 1339200 | H149: 306 | I149: FALSE
A150: 11 | B150: 128 | C150: 8 | D150: FALSE | E150: 29 | F150: 1350137 | G150: 1350000 | H150: 137 | I150: FALSE
A151: 11 | B151: 129 | C151: 9 | D151: =AND(C151=12,MOD(A151*11+Offset,30)<11) -> FALSE | E151: 30 | F151: 1360768 | G151: 1360440 | H151: =F151-G151 -> 328 | I151: =IF(Reverse,MOD((A151-1)*11+Offset,30)<11,FALSE) -> FALSE
A152: =IF(C152=1,A151+1,A151) -> 11 | B152: 130 | C152: 10 | D152: FALSE | E152: =IF(MOD(C152,2)=1,IF(I152,29,30),IF(I152,30,29))+IF(D152,1,0) -> 29 | F152: 1371399 | G152: =G151+E151*PPD -> 1371240 | H152: 159 | I152: FALSE
A153: 11 | B153: =B152+1 -> 131 | C153: =IF(C152=12,1,C152+1) -> 11 | D153: FALSE | E153: 30 | F153: =F152+PPM -> 1382030 | G153: 1381680 | H153: 350 | I153: FALSE
A154: 11 | B154: 132 | C154: 12 | D154: TRUE | E154: 30 | F154: 1392661 | G154: 1392480 | H154: 181 | I154: FALSE
A155: 12 | B155: 133 | C155: 1 | D155: FALSE | E155: 30 | F155: 1403292 | G155: 1403280 | H155: 12 | I155: FALSE
A156: 12 | B156: 134 | C156: 2 | D156: FALSE | E156: 29 | F156: 1413923 | G156: 1414080 | H156: -157 | I156: FALSE
A157: 12 | B157: 135 | C157: 3 | D157: FALSE | E157: 30 | F157: 1424554 | G157: 1424520 | H157: 34 | I157: FALSE
A158: 12 | B158: 136 | C158: 4 | D158: FALSE | E158: 29 | F158: 1435185 | G158: 1435320 | H158: -135 | I158: FALSE
A159: 12 | B159: 137 | C159: 5 | D159: FALSE | E159: 30 | F159: 1445816 | G159: 1445760 | H159: 56 | I159: FALSE
A160: 12 | B160: 138 | C160: 6 | D160: FALSE | E160: 29 | F160: 1456447 | G160: 1456560 | H160: -113 | I160: FALSE
A161: 12 | B161: 139 | C161: 7 | D161: FALSE | E161: 30 | F161: 1467078 | G161: 1467000 | H161: 78 | I161: FALSE
A162: 12 | B162: 140 | C162: 8 | D162: FALSE | E162: 29 | F162: 1477709 | G162: 1477800 | H162: -91 | I162: FALSE
A163: 12 | B163: 141 | C163: 9 | D163: FALSE | E163: 30 | F163: 1488340 | G163: 1488240 | H163: 100 | I163: FALSE
A164: 12 | B164: 142 | C164: 10 | D164: FALSE | E164: 29 | F164: 1498971 | G164: 1499040 | H164: -69 | I164: FALSE
A165: 12 | B165: 143 | C165: 11 | D165: FALSE | E165: 30 | F165: 1509602 | G165: 1509480 | H165: 122 | I165: FALSE
A166: 12 | B166: 144 | C166: 12 | D166: FALSE | E166: 29 | F166: 1520233 | G166: 1520280 | H166: -47 | I166: FALSE
A167: 13 | B167: 145 | C167: 1 | D167: FALSE | E167: 30 | F167: 1530864 | G167: 1530720 | H167: 144 | I167: FALSE
A168: 13 | B168: 146 | C168: 2 | D168: FALSE | E168: 29 | F168: 1541495 | G168: 1541520 | H168: -25 | I168: FALSE
A169: 13 | B169: 147 | C169: 3 | D169: FALSE | E169: 30 | F169: 1552126 | G169: 1551960 | H169: 166 | I169: FALSE
A170: 13 | B170: 148 | C170: 4 | D170: FALSE | E170: 29 | F170: 1562757 | G170: 1562760 | H170: -3 | I170: FALSE
A171: 13 | B171: 149 | C171: 5 | D171: FALSE | E171: 30 | F171: 1573388 | G171: 1573200 | H171: 188 | I171: FALSE
A172: 13 | B172: 150 | C172: 6 | D172: FALSE | E172: 29 | F172: 1584019 | G172: 1584000 | H172: 19 | I172: FALSE
A173: 13 | B173: 151 | C173: 7 | D173: FALSE | E173: 30 | F173: 1594650 | G173: 1594440 | H173: 210 | I173: FALSE
A174: 13 | B174: 152 | C174: 8 | D174: FALSE | E174: 29 | F174: 1605281 | G174: 1605240 | H174: 41 | I174: FALSE
A175: 13 | B175: 153 | C175: 9 | D175: FALSE | E175: 30 | F175: 1615912 | G175: 1615680 | H175: 232 | I175: FALSE
A176: 13 | B176: 154 | C176: 10 | D176: FALSE | E176: 29 | F176: 1626543 | G176: 1626480 | H176: 63 | I176: FALSE
A177: 13 | B177: 155 | C177: 11 | D177: FALSE | E177: 30 | F177: 1637174 | G177: 1636920 | H177: 254 | I177: FALSE
A178: 13 | B178: 156 | C178: 12 | D178: FALSE | E178: 29 | F178: 1647805 | G178: 1647720 | H178: 85 | I178: FALSE
A179: 14 | B179: 157 | C179: 1 | D179: FALSE | E179: 30 | F179: 1658436 | G179: 1658160 | H179: 276 | I179: FALSE
A180: 14 | B180: 158 | C180: 2 | D180: FALSE | E180: 29 | F180: 1669067 | G180: 1668960 | H180: 107 | I180: FALSE
A181: 14 | B181: 159 | C181: 3 | D181: FALSE | E181: 30 | F181: 1679698 | G181: 1679400 | H181: 298 | I181: FALSE
A182: 14 | B182: 160 | C182: 4 | D182: FALSE | E182: 29 | F182: 1690329 | G182: 1690200 | H182: 129 | I182: FALSE
A183: 14 | B183: 161 | C183: 5 | D183: FALSE | E183: 30 | F183: 1700960 | G183: 1700640 | H183: 320 | I183: FALSE
A184: 14 | B184: 162 | C184: 6 | D184: FALSE | E184: 29 | F184: 1711591 | G184: 1711440 | H184: 151 | I184: FALSE
A185: 14 | B185: 163 | C185: 7 | D185: FALSE | E185: 30 | F185: 1722222 | G185: 1721880 | H185: 342 | I185: FALSE
A186: 14 | B186: 164 | C186: 8 | D186: FALSE | E186: 29 | F186: 1732853 | G186: 1732680 | H186: 173 | I186: FALSE
A187: 14 | B187: 165 | C187: 9 | D187: FALSE | E187: 30 | F187: 1743484 | G187: 1743120 | H187: 364 | I187: FALSE
A188: 14 | B188: 166 | C188: 10 | D188: FALSE | E188: 29 | F188: 1754115 | G188: 1753920 | H188: 195 | I188: FALSE
A189: 14 | B189: 167 | C189: 11 | D189: FALSE | E189: 30 | F189: 1764746 | G189: 1764360 | H189: 386 | I189: FALSE
A190: 14 | B190: 168 | C190: 12 | D190: TRUE | E190: 30 | F190: 1775377 | G190: 1775160 | H190: 217 | I190: FALSE
A191: 15 | B191: 169 | C191: 1 | D191: FALSE | E191: 30 | F191: 1786008 | G191: 1785960 | H191: 48 | I191: FALSE
A192: 15 | B192: 170 | C192: 2 | D192: FALSE | E192: 29 | F192: 1796639 | G192: 1796760 | H192: -121 | I192: FALSE
A193: 15 | B193: 171 | C193: 3 | D193: FALSE | E193: 30 | F193: 1807270 | G193: 1807200 | H193: 70 | I193: FALSE
A194: 15 | B194: 172 | C194: 4 | D194: FALSE | E194: 29 | F194: 1817901 | G194: 1818000 | H194: -99 | I194: FALSE
A195: 15 | B195: 173 | C195: 5 | D195: FALSE | E195: 30 | F195: 1828532 | G195: 1828440 | H195: 92 | I195: FALSE
A196: 15 | B196: 174 | C196: 6 | D196: FALSE | E196: 29 | F196: 1839163 | G196: 1839240 | H196: -77 | I196: FALSE
A197: 15 | B197: 175 | C197: 7 | D197: FALSE | E197: 30 | F197: 1849794 | G197: 1849680 | H197: 114 | I197: FALSE
A198: 15 | B198: 176 | C198: 8 | D198: FALSE | E198: 29 | F198: 1860425 | G198: 1860480 | H198: -55 | I198: FALSE
A199: 15 | B199: 177 | C199: 9 | D199: FALSE | E199: 30 | F199: 1871056 | G199: 1870920 | H199: 136 | I199: FALSE
A200: 15 | B200: 178 | C200: 10 | D200: FALSE | E200: 29 | F200: 1881687 | G200: 1881720 | H200: -33 | I200: FALSE
A201: 15 | B201: 179 | C201: 11 | D201: FALSE | E201: 30 | F201: 1892318 | G201: 1892160 | H201: 158 | I201: FALSE
... 193 more rows

Sheet Years
A1: Month in Cycle | B1: Year | C1: New Year Moment | D1: Elapsed | E1: Difference | F1: Top | G1: Year Start
A2: =StartMonth -> 11 | B2: 1 | C2: =(A2-1)*PPM -> 106310 | D2: =LOOKUP(A2,Data!B$23:B$394,Data!G$23:G$394) -> 106200 | E2: =C2-D2 -> 110 | F2: 550 | G2: =A2-StartMonth+1 -> 1
A3: =A2+12 -> 23 | B3: =MOD(B2,30)+1 -> 2 | C3: =(A3-1)*PPM -> 233882 | D3: =LOOKUP(A3,Data!B$23:B$394,Data!G$23:G$394) -> 233640 | E3: =C3-D3 -> 242 | F3: =F2 -> 550 | G3: 13
A4: =A3+12 -> 35 | B4: =MOD(B3,30)+1 -> 3 | C4: =(A4-1)*PPM -> 361454 | D4: =LOOKUP(A4,Data!B$23:B$394,Data!G$23:G$394) -> 361080 | E4: =C4-D4 -> 374 | F4: =F3 -> 550 | G4: 25
A5: =A4+12 -> 47 | B5: 4 | C5: =(A5-1)*PPM -> 489026 | D5: =LOOKUP(A5,Data!B$23:B$394,Data!G$23:G$394) -> 488880 | E5: =C5-D5 -> 146 | F5: =F4 -> 550 | G5: 37
A6: =A5+12 -> 59 | B6: 5 | C6: =(A6-1)*PPM -> 616598 | D6: =LOOKUP(A6,Data!B$23:B$394,Data!G$23:G$394) -> 616320 | E6: 278 | F6: =F5 -> 550 | G6: 49
A7: 71 | B7: 6 | C7: 744170 | D7: =LOOKUP(A7,Data!B$23:B$394,Data!G$23:G$394) -> 743760 | E7: 410 | F7: 550 | G7: 61
A8: 83 | B8: 7 | C8: 871742 | D8: =LOOKUP(A8,Data!B$23:B$394,Data!G$23:G$394) -> 871560 | E8: 182 | F8: 550 | G8: 73
A9: 95 | B9: 8 | C9: 999314 | D9: =LOOKUP(A9,Data!B$23:B$394,Data!G$23:G$394) -> 999000 | E9: 314 | F9: 550 | G9: 85
A10: 107 | B10: 9 | C10: 1126886 | D10: =LOOKUP(A10,Data!B$23:B$394,Data!G$23:G$394) -> 1126440 | E10: 446 | F10: 550 | G10: 97
A11: 119 | B11: 10 | C11: 1254458 | D11: =LOOKUP(A11,Data!B$23:B$394,Data!G$23:G$394) -> 1254240 | E11: 218 | F11: 550 | G11: 109
A12: 131 | B12: 11 | C12: 1382030 | D12: =LOOKUP(A12,Data!B$23:B$394,Data!G$23:G$394) -> 1381680 | E12: 350 | F12: 550 | G12: 121
A13: 143 | B13: 12 | C13: 1509602 | D13: =LOOKUP(A13,Data!B$23:B$394,Data!G$23:G$394) -> 1509480 | E13: 122 | F13: 550 | G13: 133
A14: 155 | B14: 13 | C14: 1637174 | D14: =LOOKUP(A14,Data!B$23:B$394,Data!G$23:G$394) -> 1636920 | E14: 254 | F14: 550 | G14: 145
A15: 167 | B15: 14 | C15: 1764746 | D15: =LOOKUP(A15,Data!B$23:B$394,Data!G$23:G$394) -> 1764360 | E15: 386 | F15: 550 | G15: 157
A16: 179 | B16: 15 | C16: 1892318 | D16: =LOOKUP(A16,Data!B$23:B$394,Data!G$23:G$394) -> 1892160 | E16: 158 | F16: 550 | G16: 169
A17: 191 | B17: 16 | C17: 2019890 | D17: =LOOKUP(A17,Data!B$23:B$394,Data!G$23:G$394) -> 2019600 | E17: 290 | F17: 550 | G17: 181
A18: 203 | B18: 17 | C18: 2147462 | D18: =LOOKUP(A18,Data!B$23:B$394,Data!G$23:G$394) -> 2147040 | E18: 422 | F18: 550 | G18: 193
A19: 215 | B19: 18 | C19: 2275034 | D19: =LOOKUP(A19,Data!B$23:B$394,Data!G$23:G$394) -> 2274840 | E19: 194 | F19: 550 | G19: 205
A20: 227 | B20: 19 | C20: 2402606 | D20: =LOOKUP(A20,Data!B$23:B$394,Data!G$23:G$394) -> 2402280 | E20: 326 | F20: 550 | G20: 217
A21: 239 | B21: 20 | C21: 2530178 | D21: =LOOKUP(A21,Data!B$23:B$394,Data!G$23:G$394) -> 2529720 | E21: 458 | F21: 550 | G21: 229
A22: 251 | B22: 21 | C22: 2657750 | D22: =LOOKUP(A22,Data!B$23:B$394,Data!G$23:G$394) -> 2657520 | E22: 230 | F22: 550 | G22: 241
A23: 263 | B23: 22 | C23: 2785322 | D23: =LOOKUP(A23,Data!B$23:B$394,Data!G$23:G$394) -> 2784960 | E23: 362 | F23: 550 | G23: 253
A24: 275 | B24: 23 | C24: 2912894 | D24: =LOOKUP(A24,Data!B$23:B$394,Data!G$23:G$394) -> 2912760 | E24: 134 | F24: 550 | G24: 265
A25: 287 | B25: 24 | C25: 3040466 | D25: =LOOKUP(A25,Data!B$23:B$394,Data!G$23:G$394) -> 3040200 | E25: 266 | F25: 550 | G25: 277
A26: 299 | B26: 25 | C26: 3168038 | D26: =LOOKUP(A26,Data!B$23:B$394,Data!G$23:G$394) -> 3167640 | E26: 398 | F26: 550 | G26: 289
A27: 311 | B27: 26 | C27: 3295610 | D27: =LOOKUP(A27,Data!B$23:B$394,Data!G$23:G$394) -> 3295440 | E27: 170 | F27: 550 | G27: 301
A28: =A27+12 -> 323 | B28: =MOD(B27,30)+1 -> 27 | C28: =(A28-1)*PPM -> 3423182 | D28: =LOOKUP(A28,Data!B$23:B$394,Data!G$23:G$394) -> 3422880 | E28: =C28-D28 -> 302 | F28: =F27 -> 550 | G28: =A28-StartMonth+1 -> 313
A29: =A28+12 -> 335 | B29: =MOD(B28,30)+1 -> 28 | C29: =(A29-1)*PPM -> 3550754 | D29: =LOOKUP(A29,Data!B$23:B$394,Data!G$23:G$394) -> 3550320 | E29: =C29-D29 -> 434 | F29: =F28 -> 550 | G29: =A29-StartMonth+1 -> 325
A30: =A29+12 -> 347 | B30: =MOD(B29,30)+1 -> 29 | C30: =(A30-1)*PPM -> 3678326 | D30: =LOOKUP(A30,Data!B$23:B$394,Data!G$23:G$394) -> 3678120 | E30: =C30-D30 -> 206 | F30: =F29 -> 550 | G30: =A30-StartMonth+1 -> 337
A31: =A30+12 -> 359 | B31: =MOD(B30,30)+1 -> 30 | C31: =(A31-1)*PPM -> 3805898 | D31: =LOOKUP(A31,Data!B$23:B$394,Data!G$23:G$394) -> 3805560 | E31: =C31-D31 -> 338 | F31: =F30 -> 550 | G31: =A31-StartMonth+1 -> 349
A32: =A31+12 -> 371 | B32: =MOD(B31,30)+1 -> 1 | C32: =(A32-1)*PPM -> 3933470 | D32: =LOOKUP(A32,Data!B$23:B$394,Data!G$23:G$394) -> 3933360 | E32: =C32-D32 -> 110 | F32: =F31 -> 550 | G32: =A32-StartMonth+1 -> 361

Sheet Years2
A1: Month in Cycle | B1: Year | C1: New Year Moment | D1: Elapsed | E1: Difference | F1: Top | G1: Year Start
A2: =StartMonth2 -> 2 | B2: 1 | C2: =(A2-1)*PPM -> 10631 | D2: =LOOKUP(A2,Data!B$23:B$394,Data!G$23:G$394) -> 10800 | E2: =C2-D2 -> -169 | F2: 550 | G2: =A2-StartMonth+1 -> -8
A3: =A2+12 -> 14 | B3: =MOD(B2,30)+1 -> 2 | C3: 138203 | D3: =LOOKUP(A3,Data!B$23:B$394,Data!G$23:G$394) -> 138240 | E3: -37 | F3: =F2 -> 550 | G3: 4
A4: 26 | B4: 3 | C4: 265775 | D4: =LOOKUP(A4,Data!B$23:B$394,Data!G$23:G$394) -> 265680 | E4: 95 | F4: 550 | G4: 16
A5: 38 | B5: 4 | C5: 393347 | D5: =LOOKUP(A5,Data!B$23:B$394,Data!G$23:G$394) -> 393480 | E5: -133 | F5: 550 | G5: 28
A6: 50 | B6: 5 | C6: 520919 | D6: =LOOKUP(A6,Data!B$23:B$394,Data!G$23:G$394) -> 520920 | E6: -1 | F6: 550 | G6: 40
A7: 62 | B7: 6 | C7: 648491 | D7: =LOOKUP(A7,Data!B$23:B$394,Data!G$23:G$394) -> 648360 | E7: 131 | F7: 550 | G7: 52
A8: 74 | B8: 7 | C8: 776063 | D8: =LOOKUP(A8,Data!B$23:B$394,Data!G$23:G$394) -> 776160 | E8: -97 | F8: 550 | G8: 64
A9: 86 | B9: 8 | C9: 903635 | D9: =LOOKUP(A9,Data!B$23:B$394,Data!G$23:G$394) -> 903600 | E9: 35 | F9: 550 | G9: 76
A10: 98 | B10: 9 | C10: 1031207 | D10: =LOOKUP(A10,Data!B$23:B$394,Data!G$23:G$394) -> 1031040 | E10: 167 | F10: 550 | G10: 88
A11: 110 | B11: 10 | C11: 1158779 | D11: =LOOKUP(A11,Data!B$23:B$394,Data!G$23:G$394) -> 1158840 | E11: -61 | F11: 550 | G11: 100
A12: 122 | B12: 11 | C12: 1286351 | D12: =LOOKUP(A12,Data!B$23:B$394,Data!G$23:G$394) -> 1286280 | E12: 71 | F12: 550 | G12: 112
A13: 134 | B13: 12 | C13: 1413923 | D13: =LOOKUP(A13,Data!B$23:B$394,Data!G$23:G$394) -> 1414080 | E13: -157 | F13: 550 | G13: 124
A14: 146 | B14: 13 | C14: 1541495 | D14: =LOOKUP(A14,Data!B$23:B$394,Data!G$23:G$394) -> 1541520 | E14: -25 | F14: 550 | G14: 136
A15: 158 | B15: 14 | C15: 1669067 | D15: =LOOKUP(A15,Data!B$23:B$394,Data!G$23:G$394) -> 1668960 | E15: 107 | F15: 550 | G15: 148
A16: 170 | B16: 15 | C16: 1796639 | D16: =LOOKUP(A16,Data!B$23:B$394,Data!G$23:G$394) -> 1796760 | E16: -121 | F16: 550 | G16: 160
A17: 182 | B17: 16 | C17: 1924211 | D17: =LOOKUP(A17,Data!B$23:B$394,Data!G$23:G$394) -> 1924200 | E17: 11 | F17: 550 | G17: 172
A18: 194 | B18: 17 | C18: 2051783 | D18: =LOOKUP(A18,Data!B$23:B$394,Data!G$23:G$394) -> 2051640 | E18: 143 | F18: 550 | G18: 184
A19: 206 | B19: 18 | C19: 2179355 | D19: =LOOKUP(A19,Data!B$23:B$394,Data!G$23:G$394) -> 2179440 | E19: -85 | F19: 550 | G19: 196
A20: 218 | B20: 19 | C20: 2306927 | D20: =LOOKUP(A20,Data!B$23:B$394,Data!G$23:G$394) -> 2306880 | E20: 47 | F20: 550 | G20: 208
A21: 230 | B21: 20 | C21: 2434499 | D21: =LOOKUP(A21,Data!B$23:B$394,Data!G$23:G$394) -> 2434320 | E21: 179 | F21: 550 | G21: 220
A22: 242 | B22: 21 | C22: 2562071 | D22: =LOOKUP(A22,Data!B$23:B$394,Data!G$23:G$394) -> 2562120 | E22: -49 | F22: 550 | G22: 232
A23: 254 | B23: 22 | C23: 2689643 | D23: =LOOKUP(A23,Data!B$23:B$394,Data!G$23:G$394) -> 2689560 | E23: 83 | F23: 550 | G23: 244
A24: 266 | B24: 23 | C24: 2817215 | D24: =LOOKUP(A24,Data!B$23:B$394,Data!G$23:G$394) -> 2817360 | E24: -145 | F24: 550 | G24: 256
A25: 278 | B25: 24 | C25: 2944787 | D25: =LOOKUP(A25,Data!B$23:B$394,Data!G$23:G$394) -> 2944800 | E25: -13 | F25: 550 | G25: 268
A26: 290 | B26: 25 | C26: 3072359 | D26: =LOOKUP(A26,Data!B$23:B$394,Data!G$23:G$394) -> 3072240 | E26: 119 | F26: 550 | G26: 280
A27: 302 | B27: 26 | C27: 3199931 | D27: =LOOKUP(A27,Data!B$23:B$394,Data!G$23:G$394) -> 3200040 | E27: -109 | F27: 550 | G27: 292
A28: 314 | B28: 27 | C28: 3327503 | D28: =LOOKUP(A28,Data!B$23:B$394,Data!G$23:G$394) -> 3327480 | E28: 23 | F28: 550 | G28: 304
A29: 326 | B29: 28 | C29: 3455075 | D29: =LOOKUP(A29,Data!B$23:B$394,Data!G$23:G$394) -> 3454920 | E29: 155 | F29: 550 | G29: 316
A30: 338 | B30: 29 | C30: 3582647 | D30: =LOOKUP(A30,Data!B$23:B$394,Data!G$23:G$394) -> 3582720 | E30: -73 | F30: 550 | G30: 328
A31: 350 | B31: 30 | C31: 3710219 | D31: =LOOKUP(A31,Data!B$23:B$394,Data!G$23:G$394) -> 3710160 | E31: 59 | F31: 550 | G31: 340
A32: 362 | B32: 1 | C32: 3837791 | D32: =LOOKUP(A32,Data!B$23:B$394,Data!G$23:G$394) -> 3837960 | E32: -169 | F32: 550 | G32: 352

Sheet Rules
A1: odd-numbered months have 30 days, even numbered months have 29 days
A2: except in leap year when 12th (final) month has 30 days
A3: 11 leap years of 355 days | B3: =(6*30+6*29+1)*11 -> 3905 | C3: days
A4: 19 years of 354 days | B4: =(6*30+6*29)*19 -> 6726 | C4: days
A5: Total of 30 lunar years | B5: =SUM(B3:B4) -> 10631 | C5: days
B6: 360 | C6: months
A8: leap years are 2, 5, 7, 10, 13, 16, 18, 21, 24, 26, 29
A9: whenever the remainder at end of year exceeds 1/2 day (15/30 day)
A10: year y is leap if and only if (11y+14) MOD 30 < 11
A12: alternative sequences:
A13: remainder equals or exceeds 1/2 day = 2, 5, 7, 10, 13, 15, 18, 21, 24, 26, 29
A14: year y is leap if and only if (11y+15) MOD 30 < 11
A16: Ismaili Tayyebi (Bohras): 2, 5, 8, 10, 13, 16, 19, 21, 24, 27, 29
A17: year y is leap if and only if (11y+11) MOD 30 < 11
A19: 2, 5, 8, 11, 13, 16, 19, 21, 24, 27, 30
A20: year y is leap if and only if (11y+9) MOD 30 < 11
A22: epoch sunset Thu July 15, 622 CE Julian
A23: RD 227015
B25: Target: | C25: 2, 5, 7, 10, 13, 16, 18, 21, 24, 26, 29
A27: Equal | B27: Offset | C27: List of Leap Years
A28: =C$25=C28 -> FALSE | B28: 1 | C28: =islamic_leap_years(B28) -> 3, 6, 9, 11, 14, 17, 19, 22, 25, 28, 30
A29: FALSE | B29: 2 | C29: 3, 6, 8, 11, 14, 17, 19, 22, 25, 28, 30
A30: FALSE | B30: 3 | C30: 3, 6, 8, 11, 14, 17, 19, 22, 25, 27, 30
A31: FALSE | B31: 4 | C31: 3, 6, 8, 11, 14, 16, 19, 22, 25, 27, 30
A32: FALSE | B32: 5 | C32: 3, 5, 8, 11, 14, 16, 19, 22, 25, 27, 30
A33: FALSE | B33: 6 | C33: 3, 5, 8, 11, 14, 16, 19, 22, 24, 27, 30
A34: FALSE | B34: 7 | C34: 3, 5, 8, 11, 13, 16, 19, 22, 24, 27, 30
A35: FALSE | B35: 8 | C35: 2, 5, 8, 11, 13, 16, 19, 22, 24, 27, 30
A36: FALSE | B36: 9 | C36: 2, 5, 8, 11, 13, 16, 19, 21, 24, 27, 30
A37: FALSE | B37: 10 | C37: 2, 5, 8, 10, 13, 16, 19, 21, 24, 27, 30
A38: FALSE | B38: 11 | C38: 2, 5, 8, 10, 13, 16, 19, 21, 24, 27, 29
A39: FALSE | B39: 12 | C39: 2, 5, 8, 10, 13, 16, 18, 21, 24, 27, 29
A40: FALSE | B40: 13 | C40: 2, 5, 7, 10, 13, 16, 18, 21, 24, 27, 29
A41: TRUE | B41: 14 | C41: 2, 5, 7, 10, 13, 16, 18, 21, 24, 26, 29
A42: FALSE | B42: 15 | C42: 2, 5, 7, 10, 13, 15, 18, 21, 24, 26, 29
A43: FALSE | B43: 16 | C43: 2, 4, 7, 10, 13, 15, 18, 21, 24, 26, 29
A44: FALSE | B44: 17 | C44: 2, 4, 7, 10, 13, 15, 18, 21, 23, 26, 29
A45: FALSE | B45: 18 | C45: 2, 4, 7, 10, 12, 15, 18, 21, 23, 26, 29
A46: FALSE | B46: 19 | C46: 1, 4, 7, 10, 12, 15, 18, 21, 23, 26, 29
A47: FALSE | B47: 20 | C47: 1, 4, 7, 10, 12, 15, 18, 20, 23, 26, 29
A48: FALSE | B48: 21 | C48: 1, 4, 7, 9, 12, 15, 18, 20, 23, 26, 29
A49: FALSE | B49: 22 | C49: 1, 4, 7, 9, 12, 15, 18, 20, 23, 26, 28
A50: FALSE | B50: 23 | C50: 1, 4, 7, 9, 12, 15, 17, 20, 23, 26, 28
A51: FALSE | B51: 24 | C51: 1, 4, 6, 9, 12, 15, 17, 20, 23, 26, 28
A52: FALSE | B52: 25 | C52: 1, 4, 6, 9, 12, 15, 17, 20, 23, 25, 28
A53: FALSE | B53: 26 | C53: 1, 4, 6, 9, 12, 14, 17, 20, 23, 25, 28
A54: FALSE | B54: 27 | C54: 1, 3, 6, 9, 12, 14, 17, 20, 23, 25, 28
A55: FALSE | B55: 28 | C55: 1, 3, 6, 9, 12, 14, 17, 20, 22, 25, 28
A56: FALSE | B56: 29 | C56: 1, 3, 6, 9, 11, 14, 17, 20, 22, 25, 28
A57: FALSE | B57: 30 | C57: 3, 6, 9, 11, 14, 17, 20, 22, 25, 28, 30

Sheet Zoom
A1: 0 | B1: = Current Zoom Level
A2: Level | B2: Months | C2: MajorTick | D2: MinorTick | E2: Shift | F2: Connect
A3: =ROW()-3 -> 0 | B3: 360 | C3: 24 | D3: 12 | F3: FALSE
A4: =ROW()-3 -> 1 | B4: =B3/2 -> 180 | C4: 12 | D4: 6 | E4: 90 | F4: FALSE
A5: =ROW()-3 -> 2 | B5: =B4/2 -> 90 | C5: 6 | D5: 1 | E5: 30 | F5: TRUE
A6: =ROW()-3 -> 3 | B6: 60 | C6: 6 | D6: 1 | E6: 30 | F6: TRUE
A7: =ROW()-3 -> 4 | B7: 12 | C7: 1 | D7: 1 | E7: 12 | F7: TRUE

Sheet Labels
A1: Month | B1: Hours | C1: ="Span "&B2-B26&"h" -> Span 72h
A2: 361 | B2: 36
A3: =A2 -> 361 | B3: =B2-3 -> 33
A4: =A3 -> 361 | B4: =B3-3 -> 30
A5: =A4 -> 361 | B5: 27
A6: =A5 -> 361 | B6: 24
A7: 361 | B7: 21
A8: 361 | B8: 18
A9: 361 | B9: 15
A10: 361 | B10: 12
A11: 361 | B11: 9
A12: 361 | B12: 6
A13: 361 | B13: 3
A14: 361 | B14: 0
A15: 361 | B15: -3
A16: 361 | B16: -6
A17: 361 | B17: -9
A18: 361 | B18: -12
A19: 361 | B19: -15
A20: 361 | B20: -18
A21: 361 | B21: -21
A22: 361 | B22: -24
A23: 361 | B23: -27
A24: 361 | B24: -30
A25: 361 | B25: -33
A26: 361 | B26: -36
